fUST/lending_fUST_20260101
["ID","MTS","AMOUNT","RATE_DAILY","PERIOD"]
[400270326,1767246648862,-1014.247476,0.00037331,31]
[400270327,1767246648871,-1014.247476,0.00037331,31]
[400270328,1767246648880,-1014.247476,0.00037331,31]
[400270329,1767246648889,-1014.247473,0.00037331,31]
[400270330,1767246648899,-281.93691,0.00037331,31]
[400270331,1767246648908,-281.93691,0.00037331,31]
[400270332,1767246648918,-281.93691,0.00037331,31]
[400270333,1767246648927,-281.93691,0.00037331,31]
[400270334,1767246648936,-281.93691,0.00037331,31]
[400270335,1767246648946,-281.93691,0.00037331,31]
[400270336,1767246648955,-281.93691,0.00037331,31]
[400270337,1767246648964,-281.93691,0.00037331,31]
[400270338,1767246648974,-281.93691,0.00037331,31]
[400270339,1767246648983,-281.93691,0.00037331,31]
[400270340,1767246648992,-281.93691,0.00037331,31]
[400270341,1767246649002,-281.936902,0.00037331,31]
[400270342,1767246649011,-352.904204,0.00037331,31]
[400270343,1767246649021,-352.904204,0.00037331,31]
[400270344,1767246649030,-352.904204,0.00037331,31]
[400270345,1767246649040,-151.0,0.00037331,31]
[400270346,1767246649050,-352.904204,0.00037331,31]
[400270347,1767246649059,-352.904204,0.00037331,31]
[400270348,1767246649069,-151.0,0.00037331,31]
[400270349,1767246649078,-352.904204,0.00037331,31]
[400270350,1767246649087,-151.0,0.00037331,31]
[400270351,1767246649097,-352.904204,0.00037331,31]
[400270352,1767246649110,-151.0,0.00037331,31]
[400270353,1767246649119,-352.904204,0.00037331,31]
[400270354,1767246649129,-352.904204,0.00037331,31]
[400270355,1767246649138,-352.904204,0.00037331,31]
[400270356,1767246649148,-352.904204,0.00037331,31]
[400270357,1767246649158,-352.904202,0.00037331,31]
[400270358,1767246649168,-151.0,0.00037331,31]
[400270359,1767246649177,-151.0,0.00037331,31]
[400270360,1767246649187,-151.0,0.00037331,31]
[400270361,1767246649196,-151.0,0.00037331,31]
[400270362,1767246649206,-151.0,0.00037331,31]
[400270363,1767246649215,-151.0,0.00037331,31]
[400270364,1767246649225,-221.885405,0.00037331,31]
[400270365,1767246649234,-151.0,0.00037331,31]
[400270366,1767246649244,-151.0,0.00037331,31]
[400270367,1767246649254,-271.079125,0.00037331,31]
[400270368,1767246649263,-294.476225,0.00037331,31]
[400270369,1767246649273,-372.072173,0.00037331,31]
[400270370,1767246649282,-294.476225,0.00037331,31]
[400270371,1767246649292,-372.072173,0.00037331,31]
[400270372,1767246649302,-294.476225,0.00037331,31]
[400270373,1767246649311,-372.072173,0.00037331,31]
[400270374,1767246649320,-294.476225,0.00037331,31]
[400270375,1767246649334,-294.476225,0.00037331,31]
[400270376,1767246649343,-234.732816,0.00037331,31]
[400270377,1767246649352,-372.072173,0.00037331,31]
[400270378,1767246649362,-294.476225,0.00037331,31]
[400270379,1767246649374,-234.732816,0.00037331,31]
[400270380,1767246649383,-372.072173,0.00037331,31]
[400270381,1767246649392,-234.732816,0.00037331,31]
[400270382,1767246649403,-372.072173,0.00037331,31]
[400270383,1767246649413,-294.476225,0.00037331,31]
[400270384,1767246649423,-294.476225,0.00037331,31]
[400270385,1767246649432,-234.732816,0.00037331,31]
[400270386,1767246649441,-294.476225,0.00037331,31]
[400270387,1767246649451,-372.072173,0.00037331,31]
[400270388,1767246649460,-234.732816,0.00037331,31]
[400270389,1767246649470,-372.072173,0.00037331,31]
[400270390,1767246649479,-234.732816,0.00037331,31]
[400270391,1767246649489,-372.072173,0.00037331,31]
[400270392,1767246649499,-294.476225,0.00037331,31]
[400270393,1767246649508,-294.476225,0.00037331,31]
[400270394,1767246649517,-294.476228,0.00037331,31]
[400270395,1767246649527,-372.072173,0.00037331,31]
[400270396,1767246649536,-234.732816,0.00037331,31]
[400270397,1767246649546,-372.072173,0.00037331,31]
[400270398,1767246649555,-234.732816,0.00037331,31]
[400270399,1767246649564,-372.072167,0.00037331,31]
[400270400,1767246649574,-234.732816,0.00037331,31]
[400270401,1767246649660,-234.732816,0.00037331,31]
[400270402,1767246649678,-234.732816,0.00037331,31]
[400270403,1767246649687,-234.732823,0.00037331,31]
[400270404,1767246649697,-151.0,0.00037331,31]
[400270405,1767246649707,-151.0,0.00037331,31]
[400270406,1767246649717,-151.0,0.00037331,31]
[400270407,1767246649726,-151.0,0.00037331,31]
[400270408,1767246649736,-151.0,0.00037331,31]
[400270409,1767246649745,-151.0,0.00037331,31]
[400270410,1767246649754,-151.0,0.00037331,31]
[400270411,1767246649764,-182.239992,0.00037331,31]
[400270412,1767246649773,-151.0,0.00037331,31]
[400270413,1767246649784,-151.0,0.00037331,31]
[400270414,1767246649793,-252.72004,0.00037331,31]
[400270415,1767246649803,-158.480917,0.00037331,31]
[400270416,1767246649813,-158.480917,0.00037331,31]
[400270417,1767246649822,-158.480917,0.00037331,31]
[400270418,1767246649832,-158.480917,0.00037331,31]
[400270419,1767246649841,-158.480917,0.00037331,31]
[400270420,1767246649851,-158.480917,0.00037331,31]
[400270421,1767246649860,-158.480917,0.00037331,31]
[400270422,1767246649870,-158.480917,0.00037331,31]
[400270423,1767246649880,-158.480917,0.00037331,31]
[400270424,1767246649889,-158.480917,0.00037331,31]
[400270425,1767246649899,-151.0,0.00037331,31]
[400270426,1767246649908,-158.480917,0.00037331,31]
[400270427,1767246649918,-158.480922,0.00037331,31]
[400270428,1767246649927,-645.545712,0.00037331,31]
[400270429,1767246649937,-645.545712,0.00037331,31]
[400270430,1767246649946,-645.545712,0.00037331,31]
[400270431,1767246649955,-151.0,0.00037331,31]
[400270432,1767246649964,-645.545712,0.00037331,31]
[400270433,1767246649974,-151.0,0.00037331,31]
[400270434,1767246649983,-645.545712,0.00037331,31]
[400270435,1767246649992,-151.0,0.00037331,31]
[400270436,1767246650001,-645.545712,0.00037331,31]
[400270437,1767246650011,-645.545712,0.00037331,31]
[400270438,1767246650021,-151.0,0.00037331,31]
[400270439,1767246650030,-645.545712,0.00037331,31]
[400270440,1767246650040,-151.0,0.00037331,31]
[400270441,1767246650050,-645.545712,0.00037331,31]
[400270442,1767246650059,-151.0,0.00037331,31]
[400270443,1767246650068,-645.545712,0.00037331,31]
[400270444,1767246650080,-209.486994,0.00037331,31]
[400270445,1767246650089,-645.545712,0.00037331,31]
[400270446,1767246650099,-645.54571,0.00037331,31]
[400270447,1767246650108,-151.0,0.00037331,31]
[400270448,1767246650118,-260.435705,0.00037331,31]
[400270449,1767246650127,-1247.87245,0.00037331,31]
[400270450,1767246650137,-1247.87245,0.00037331,31]
[400270451,1767246650146,-1247.87245,0.00037331,31]
[400270452,1767246650155,-1247.87245,0.00037331,31]
[400270453,1767246650164,-1247.87245,0.00037331,31]
[400270454,1767246650174,-1247.87245,0.00037331,31]
[400270455,1767246650183,-1247.87245,0.00037331,31]
[400270456,1767246650193,-1247.87245,0.00037331,31]
[400270457,1767246650203,-1247.87245,0.00037331,31]
[400270458,1767246650212,-1247.87245,0.00037331,31]
[400270459,1767246650222,-1247.87245,0.00037331,31]
[400270460,1767246650232,-1247.872445,0.00037331,31]
[400270461,1767246650243,-151.0,0.00037331,31]
[400270462,1767246650252,-151.0,0.00037331,31]
[400270463,1767246650262,-151.0,0.00037331,31]
[400270464,1767246650271,-151.0,0.00037331,31]
[400270465,1767246650281,-151.0,0.00037331,31]
[400270466,1767246650291,-151.0,0.00037331,31]
[400270467,1767246650300,-151.0,0.00037331,31]
[400270468,1767246650310,-151.0,0.00037331,31]
[400270469,1767246650319,-151.0,0.00037331,31]
[400270470,1767246650333,-219.023222,0.00037331,31]
[400270471,1767246650342,-299.609347,0.00037331,31]
[400270472,1767246650352,-151.0,0.00037331,31]
[400270473,1767246650361,-151.0,0.00037331,31]
[400270474,1767246650371,-151.0,0.00037331,31]
[400270475,1767246650380,-151.0,0.00037331,31]
[400270476,1767246650389,-151.0,0.00037331,31]
[400270477,1767246650399,-151.0,0.00037331,31]
[400270478,1767246650408,-151.0,0.00037331,31]
[400270479,1767246650418,-151.0,0.00037331,31]
[400270480,1767246650427,-152.90129,0.00037331,31]
[400270481,1767246650437,-151.0,0.00037331,31]
[400270482,1767246650449,-151.0,0.00037331,31]
[400270483,1767246650459,-151.0,0.00037331,31]
[400270484,1767246650469,-1861.503291,0.00037331,31]
[400270485,1767246650478,-255.923016,0.00037331,31]
[400270486,1767246650488,-1861.503291,0.00037331,31]
[400270487,1767246650497,-255.923016,0.00037331,31]
[400270488,1767246650506,-1861.503291,0.00037331,31]
[400270489,1767246650515,-255.923016,0.00037331,31]
[400270490,1767246650531,-1861.503291,0.00037331,31]
[400270491,1767246650543,-255.923016,0.00037331,31]
[400270492,1767246650552,-1861.503291,0.00037331,31]
[400270493,1767246650562,-343.845219,0.00037331,31]
[400270494,1767246650575,-255.923016,0.00037331,31]
[400270495,1767246650590,-1861.503291,0.00037331,31]
[400270496,1767246650605,-343.845219,0.00037331,31]
[400270497,1767246650618,-255.923016,0.00037331,31]
[400270498,1767246650631,-343.845219,0.00037331,31]
[400270499,1767246650645,-1861.503291,0.00037331,31]
[400270500,1767246650659,-255.923016,0.00037331,31]
[400270501,1767246650674,-1861.503291,0.00037331,31]
[400270502,1767246650688,-255.923016,0.00037331,31]
[400270503,1767246650702,-343.845219,0.00037331,31]
[400270504,1767246650716,-1861.503291,0.00037331,31]
[400270505,1767246650729,-343.845219,0.00037331,31]
[400270506,1767246650743,-255.923016,0.00037331,31]
[400270507,1767246650755,-343.845219,0.00037331,31]
[400270508,1767246650769,-1861.503291,0.00037331,31]
[400270509,1767246650783,-1861.503291,0.00037331,31]
[400270510,1767246650797,-255.923016,0.00037331,31]
[400270511,1767246650808,-1861.503295,0.00037331,31]
[400270512,1767246650820,-343.845219,0.00037331,31]
[400270513,1767246650832,-255.923016,0.00037331,31]
[400270514,1767246650845,-343.845219,0.00037331,31]
[400270515,1767246650859,-255.923016,0.00037331,31]
[400270516,1767246650873,-343.845219,0.00037331,31]
[400270517,1767246650887,-343.845219,0.00037331,31]
[400270518,1767246650900,-343.845219,0.00037331,31]
[400270519,1767246650914,-343.845215,0.00037331,31]
[400270520,1767246650927,-151.0,0.00037331,31]
[400270521,1767246650938,-151.0,0.00037331,31]
[400270522,1767246650949,-151.0,0.00037331,31]
[400270523,1767246650962,-151.0,0.00037331,31]
[400270524,1767246650976,-197.992573,0.00037331,31]
[400270525,1767246650990,-566.208767,0.00037331,31]
[400270526,1767246651000,-566.208767,0.00037331,31]
[400270527,1767246651011,-566.208767,0.00037331,31]
[400270528,1767246651024,-566.208767,0.00037331,31]
[400270529,1767246651037,-566.208767,0.00037331,31]
[400270530,1767246651048,-566.208767,0.00037331,31]
[400270531,1767246651059,-566.208767,0.00037331,31]
[400270532,1767246651071,-566.208767,0.00037331,31]
[400270533,1767246651083,-566.208767,0.00037331,31]
[400270534,1767246651095,-1173.570712,0.00037331,31]
[400270535,1767246651107,-566.208767,0.00037331,31]
[400270536,1767246651119,-1173.570712,0.00037331,31]
[400270537,1767246651131,-566.208767,0.00037331,31]
[400270538,1767246651143,-1173.570712,0.00037331,31]
[400270539,1767246651155,-566.208774,0.00037331,31]
[400270540,1767246651167,-1173.570712,0.00037331,31]
[400270541,1767246651179,-1173.570712,0.00037331,31]
[400270542,1767246651190,-1173.570712,0.00037331,31]
[400270543,1767246651202,-1173.570712,0.00037331,31]
[400270544,1767246651214,-769407.29591102,0.00037331,20]
[400270545,1767246651360,-27535.01019141,0.00037331,20]
[400270546,1767246651374,-1545.5982186,0.00037331,20]
[400270547,1767246651388,-541.086,0.00037331,20]
[400270548,1767246651402,-683102.96480003,0.00037331,20]
[400270549,1767246651416,-653.31695367,0.00037331,20]
[400270550,1767246652117,-3e-08,0.00010676,2]
[400270551,1767246652129,-428.64084964,0.00010676,2]
[400270552,1767246652141,-71.35915033,0.00010676,2]
[400270553,1767246652151,-500.0,0.00010676,2]
[400270554,1767246652160,-500.0,0.00010676,2]
[400270555,1767246652170,-500.0,0.00010676,2]
[400270556,1767246652179,-503.96837946,0.00010676,2]
[400270557,1767246652188,-500.0,0.00010676,2]
[400270558,1767246652198,-294.09370762,0.00010676,2]
[400270559,1767246652208,-500.0,0.00010676,2]
[400270560,1767246652218,-500.0,0.00010676,2]
[400270561,1767246652227,-500.0,0.00010676,2]
[400270562,1767246652236,-500.0,0.00010676,2]
[400270563,1767246652246,-500.0,0.00010676,2]
[400270564,1767246652255,-500.0,0.00010676,2]
[400270565,1767246652265,-431.74257152,0.00010676,2]
[400270566,1767246652275,-500.0,0.00010676,2]
[400270567,1767246652284,-500.0,0.00010676,2]
[400270568,1767246652293,-304.85474362,0.00010676,2]
[400270569,1767246653105,229.22,0.0001,2]
[400270570,1767246653394,229.22,0.000102,2]
[400270571,1767246653501,229.22,0.000104,2]
[400270572,1767246653557,229.22,0.000106,2]
[400270573,1767246703071,172.416,0.00010462,2]
[400270574,1767246703144,183.24,0.00010462,2]
[400270575,1767246733422,-244.39016038,0.00010674,2]
[400270576,1767246736488,-55.60983962,0.00010674,2]
[400270577,1767246748341,529.14157509,0.00010576,2]
[400270578,1767246776248,-236.71927921,0.00010674,2]
[400270579,1767246776272,-131.47840015,0.00010674,2]
[400270580,1767246778303,-368.52159985,0.00010674,2]
[400270581,1767246778326,-88.55062328,0.00010674,2]
[400270582,1767246781059,-205.95634003,0.00010674,2]
[400270583,1767246783122,-155.20132184,0.00010674,2]
[400270584,1767246783735,300.0,0.00010673,2]
[400270585,1767246785070,-50.29171485,0.00010674,2]
[400270586,1767246785096,-255.08551362,0.00010674,2]
[400270587,1767246787759,-244.91448638,0.00010674,2]
[400270588,1767246787781,-25.14562954,0.00010674,2]
[400270589,1767246790385,-290.14506975,0.00010674,2]
[400270590,1767246792840,-184.70930071,0.00010674,2]
[400270591,1767246792864,-106.47544092,0.00010674,2]
[400270592,1767246794193,1200.0,0.00010673,2]
[400270593,1767246794892,-383.97626533,0.00010674,2]
[400270594,1767246798779,-9.54829375,0.00010674,2]
[400270595,1767246798802,-263.17107362,0.00010674,2]
[400270596,1767246801534,-236.82892638,0.00010674,2]
[400270597,1767246801562,-279.30670692,0.00010674,2]
[400270598,1767246804828,-220.69329308,0.00010674,2]
[400270599,1767246804852,-7.27036693,0.00010674,2]
[400270600,1767246807370,-162.79696376,0.00010674,2]
[400270601,1767246807395,-52.81956193,0.00010674,2]
[400270602,1767246809427,-169.21891132,0.00010674,2]
[400270603,1767246811634,-151.12947618,0.00010674,2]
[400270604,1767246813152,-126.83205057,0.00010674,2]
[400270605,1767246813175,-493.9138372,0.00010674,2]
[400270606,1767246814742,-6.0861628,0.00010674,2]
[400270607,1767246814766,-259.21478696,0.00010674,2]
[400270608,1767246814998,8500.01,0.00010674,2]
[400270609,1767246815021,10000.01,0.00010674,2]
[400270610,1767246815043,10000.01,0.00010674,2]
[400270611,1767246815065,10000.01,0.00010674,2]
[400270612,1767246815088,10000.01,0.00010674,2]
[400270613,1767246815108,1499.95,0.00010674,2]
[400270614,1767246817443,-240.78521304,0.00010674,2]
[400270615,1767246817465,-59.21478696,0.00010674,2]
[400270616,1767246819567,-151.79753616,0.00010674,2]
[400270617,1767246827679,-226.17522684,0.00010674,2]
[400270618,1767246829304,-62.81245004,0.00010674,2]
[400270619,1767246829327,-261.69848242,0.00010674,2]
[400270620,1767246831356,-318.2538688,0.00010674,2]
[400270621,1767246831701,153.12,0.0001,2]
[400270622,1767246833367,-48.00887744,0.00010674,2]
[400270623,1767246833393,-254.25895302,0.00010674,2]
[400270624,1767246833665,153.12,0.000102,2]
[400270625,1767246835643,-204.86794627,0.00010674,2]
[400270626,1767246836226,153.12,0.000104,2]
[400270627,1767246842268,300.0,0.00010673,2]
[400270628,1767246842720,-40.87310071,0.00010674,2]
[400270629,1767246842744,-233.35347623,0.00010674,2]
[400270630,1767246843217,300.0,0.00010673,2]
[400270631,1767246845085,-266.64652377,0.00010674,2]
[400270632,1767246845107,-183.5603008,0.00010674,2]
[400270633,1767246847219,-316.4396992,0.00010674,2]
[400270634,1767246847242,-52.11104247,0.00010674,2]
[400270635,1767246849887,-326.66584626,0.00010674,2]
[400270636,1767246853571,-249.18433993,0.00010674,2]
[400270637,1767246853593,-50.81566007,0.00010674,2]
[400270638,1767246856031,-226.75319473,0.00010674,2]
[400270639,1767246858117,-90.00173261,0.00010674,2]
[400270640,1767246858141,-190.92025297,0.00010674,2]
[400270641,1767246859626,-309.07974703,0.00010674,2]
[400270642,1767246859650,-49.41597247,0.00010674,2]
[400270643,1767246861239,-200.12659503,0.00010674,2]
[400270644,1767246862776,-151.45819617,0.00010674,2]
[400270645,1767246864270,-98.99923633,0.00010674,2]
[400270646,1767246864293,-237.12833607,0.00010674,2]
[400270647,1767246865836,-390.83289259,0.00010674,2]
[400270648,1767246865860,-40.41386133,0.00010674,2]
[400270649,1767246867787,-223.41335437,0.00010674,2]
[400270650,1767246870504,-236.1727843,0.00010674,2]
[400270651,1767246870527,-167.53566674,0.00010674,2]
[400270652,1767246874351,-315.30608388,0.00010674,2]
[400270653,1767246877127,-17.15824938,0.00010674,2]
[400270654,1767246877150,-189.45159021,0.00010674,2]
[400270655,1767246880268,-188.12590808,0.00010674,2]
[400270656,1767246882868,-122.42250171,0.00010674,2]
[400270657,1767246882892,-306.14710766,0.00010674,2]
[400270658,1767246885515,-321.814121,0.00010674,2]
[400270659,1767246885538,-25.90835566,0.00010674,2]
[400270660,1767246887633,-474.09164434,0.00010674,2]
[400270661,1767246887657,-25.90835566,0.00010674,2]
[400270662,1767246890313,-181.48222432,0.00010674,2]
[400270663,1767246893035,-173.14101517,0.00010674,2]
[400270664,1767246894722,-153.97957415,0.00010674,2]
[400270665,1767246894744,-30.85434093,0.00010674,2]
[400270666,1767246896943,-203.59777879,0.00010674,2]
[400270667,1767246896974,500.0,0.00010673,2]
[400270668,1767246897004,500.0,0.00010673,2]
[400270669,1767246897032,500.0,0.00010673,2]
[400270670,1767246897064,500.0,0.00010673,2]
[400270671,1767246897092,500.0,0.00010673,2]
[400270672,1767246897122,500.0,0.00010673,2]
[400270673,1767246897152,500.0,0.00010673,2]
[400270674,1767246897182,500.0,0.00010673,2]
[400270675,1767246897211,500.0,0.00010673,2]
[400270676,1767246897240,500.0,0.00010673,2]
[400270677,1767246897269,500.0,0.00010673,2]
[400270678,1767246897297,155.53213207,0.00010673,2]
[400270679,1767246897327,500.0,0.00010673,2]
[400270680,1767246897358,500.0,0.00010673,2]
[400270681,1767246897393,500.0,0.00010673,2]
[400270682,1767246897427,285.16786793,0.00010673,2]
[400270683,1767246897459,214.83213207,0.00010673,2]
[400270684,1767246897488,500.0,0.00010673,2]
[400270685,1767246897516,500.0,0.00010673,2]
[400270686,1767246897549,500.0,0.00010673,2]
[400270687,1767246897579,500.0,0.00010673,2]
[400270688,1767246897609,500.0,0.00010673,2]
[400270689,1767246897641,500.0,0.00010673,2]
[400270690,1767246897670,500.0,0.00010673,2]
[400270691,1767246897699,500.0,0.00010673,2]
[400270692,1767246897729,500.0,0.00010673,2]
[400270693,1767246897759,500.0,0.00010673,2]
[400270694,1767246897793,500.0,0.00010673,2]
[400270695,1767246897821,500.0,0.00010673,2]
[400270696,1767246897854,500.0,0.00010673,2]
[400270697,1767246897884,500.0,0.00010673,2]
[400270698,1767246897916,500.0,0.00010673,2]
[400270699,1767246897944,500.0,0.00010673,2]
[400270700,1767246897974,500.0,0.00010673,2]
[400270701,1767246898003,500.0,0.00010673,2]
[400270702,1767246898037,500.0,0.00010673,2]
[400270703,1767246898066,285.17786793,0.00010673,2]
[400270704,1767246898089,214.82213207,0.00010673,2]
[400270705,1767246898118,500.0,0.00010673,2]
[400270706,1767246898151,500.0,0.00010673,2]
[400270707,1767246898180,500.0,0.00010673,2]
[400270708,1767246898208,500.0,0.00010673,2]
[400270709,1767246898236,500.0,0.00010673,2]
[400270710,1767246898265,500.0,0.00010673,2]
[400270711,1767246898298,500.0,0.00010673,2]
[400270712,1767246898326,500.0,0.00010673,2]
[400270713,1767246898450,500.0,0.00010673,2]
[400270714,1767246898478,500.0,0.00010673,2]
[400270715,1767246898506,500.0,0.00010673,2]
[400270716,1767246898534,500.0,0.00010673,2]
[400270717,1767246898563,500.0,0.00010673,2]
[400270718,1767246898598,500.0,0.00010673,2]
[400270719,1767246898638,236.19615227,0.00010673,2]
[400270720,1767246898673,293.51912842,0.00010673,2]
[400270721,1767246898706,500.0,0.00010673,2]
[400270722,1767246898740,500.0,0.00010673,2]
[400270723,1767246898772,500.0,0.00010673,2]
[400270724,1767246898806,500.0,0.00010673,2]
[400270725,1767246898837,255.47258724,0.00010673,2]
[400270726,1767246898862,244.52741276,0.00010673,2]
[400270727,1767246898892,500.0,0.00010673,2]
[400270728,1767246898922,500.0,0.00010673,2]
[400270729,1767246898955,500.0,0.00010673,2]
[400270730,1767246898988,500.0,0.00010673,2]
[400270731,1767246899018,500.0,0.00010673,2]
[400270732,1767246899049,500.0,0.00010673,2]
[400270733,1767246899078,500.0,0.00010673,2]
[400270734,1767246899111,500.0,0.00010673,2]
[400270735,1767246899145,500.0,0.00010673,2]
[400270736,1767246899177,500.0,0.00010673,2]
[400270737,1767246899207,500.0,0.00010673,2]
[400270738,1767246899237,500.0,0.00010673,2]
[400270739,1767246899271,324.62296223,0.00010673,2]
[400270740,1767246899300,500.0,0.00010673,2]
[400270741,1767246899332,500.0,0.00010673,2]
[400270742,1767246899362,500.0,0.00010673,2]
[400270743,1767246899395,500.0,0.00010673,2]
[400270744,1767246899429,500.0,0.00010673,2]
[400270745,1767246899463,-296.40222121,0.00010674,2]
[400270746,1767246899489,-49.30517986,0.00010674,2]
[400270747,1767246901194,300.0,0.00010673,2]
[400270748,1767246901277,-318.7404693,0.00010674,2]
[400270749,1767246902501,300.0,0.00010673,2]
[400270750,1767246903259,300.0,0.00010673,2]
[400270751,1767246903347,-131.95435084,0.00010674,2]
[400270752,1767246903372,-329.34397514,0.00010674,2]
[400270753,1767246905367,-170.65602486,0.00010674,2]
[400270754,1767246905391,-100.37777382,0.00010674,2]
[400270755,1767246908152,-180.78569552,0.00010674,2]
[400270756,1767246910255,-175.77431166,0.00010674,2]
[400270757,1767246914430,-43.062219,0.00010674,2]
[400270758,1767246914454,-404.44273901,0.00010674,2]
[400270759,1767246918691,-95.55726099,0.00010674,2]
[400270760,1767246918720,-55.44273901,0.00010674,2]
[400270761,1767246920427,-300.0,0.00010674,2]
[400270762,1767246922500,-144.55726099,0.00010674,2]
[400270763,1767246922528,-50.19653624,0.00010674,2]
[400270764,1767246926766,-189.25028351,0.00010674,2]
[400270765,1767246928924,-260.55318025,0.00010674,2]
[400270766,1767246928943,-86.68381126,0.00010674,2]
[400270767,1767246931677,-152.75810031,0.00010674,2]
[400270768,1767246933450,-227.09273059,0.00010674,2]
[400270769,1767246934916,-33.46535784,0.00010674,2]
[400270770,1767246934941,-288.43804632,0.00010674,2]
[400270771,1767246937198,-195.78370352,0.00010674,2]
[400270772,1767246938652,-15.77825016,0.00010674,2]
[400270773,1767246938676,-461.67162043,0.00010674,2]
[400270774,1767246941632,30.85962501,0.00010673,2]
[400270775,1767246941656,469.14037499,0.00010673,2]
[400270776,1767246941686,500.0,0.00010673,2]
[400270779,1767246945935,500.0,0.00010673,2]
[400270780,1767246945979,435.19128419,0.00010673,2]
[400270781,1767246947486,829.17545837,0.00010673,2]
[400270782,1767246947524,829.17545837,0.00010673,2]
[400270783,1767246947557,829.17545837,0.00010673,2]
[400270784,1767246947587,829.17545837,0.00010673,2]
[400270785,1767246947622,829.17545837,0.00010673,2]
[400270786,1767246947665,829.17545837,0.00010673,2]
[400270787,1767246947699,829.17545837,0.00010673,2]
[400270788,1767246947739,829.17545837,0.00010673,2]
[400270789,1767246947775,829.17545837,0.00010673,2]
[400270790,1767246947822,633.09921549,0.00010673,2]
[400270791,1767246947847,196.07624288,0.00010673,2]
[400270792,1767246947878,829.17545837,0.00010673,2]
[400270793,1767246947912,829.17545837,0.00010673,2]
[400270794,1767246948010,829.17545837,0.00010673,2]
[400270795,1767246948048,829.17545837,0.00010673,2]
[400270796,1767246948082,829.17545837,0.00010673,2]
[400270797,1767246948115,829.17545837,0.00010673,2]
[400270798,1767246948152,829.17545837,0.00010673,2]
[400270799,1767246948191,829.17545837,0.00010673,2]
[400270800,1767246948260,829.17545837,0.00010673,2]
[400270801,1767246948413,829.17545837,0.00010673,2]
[400270802,1767246948449,829.17545837,0.00010673,2]
[400270803,1767246948479,683.00371505,0.00010673,2]
[400270804,1767246948503,146.17174332,0.00010673,2]
[400270805,1767246948533,829.17545837,0.00010673,2]
[400270806,1767246948564,829.17545837,0.00010673,2]
[400270807,1767246948596,829.17545837,0.00010673,2]
[400270808,1767246948627,829.17545837,0.00010673,2]
[400270809,1767246948657,829.17545837,0.00010673,2]
[400270810,1767246948687,829.17545837,0.00010673,2]
[400270811,1767246948725,829.17545837,0.00010673,2]
[400270812,1767246948758,829.17545837,0.00010673,2]
[400270813,1767246948792,829.17545837,0.00010673,2]
[400270814,1767246948824,829.17545837,0.00010673,2]
[400270815,1767246948855,829.17545837,0.00010673,2]
[400270816,1767246948885,732.90821461,0.00010673,2]
[400270817,1767246948912,96.26724376,0.00010673,2]
[400270818,1767246948944,829.17545837,0.00010673,2]
[400270819,1767246948973,829.17545837,0.00010673,2]
[400270820,1767246949010,829.17545837,0.00010673,2]
[400270821,1767246949039,829.17545837,0.00010673,2]
[400270822,1767246949068,829.17545837,0.00010673,2]
[400270823,1767246949096,829.17545837,0.00010673,2]
[400270824,1767246949233,829.17545837,0.00010673,2]
[400270825,1767246949266,829.17545837,0.00010673,2]
[400270826,1767246949316,829.17545837,0.00010673,2]
[400270827,1767246949393,829.17545837,0.00010673,2]